bitfinex/quotes_BTCUSD_20240906
["timestamp","ask_amount","ask_price","bid_price","bid_amount"]
[1725666348813,0.06546586,54019.0,54018.0,2.104369]
[1725666349030,0.06546586,54019.0,54018.0,2.474615]
[1725666349501,0.04805827,54019.0,54018.0,2.474615]
[1725666349722,0.04805827,54019.0,54018.0,2.476245]
[1725666349947,0.03065068,54019.0,54018.0,2.476245]
[1725666351050,0.04805827,54019.0,54018.0,2.476245]
[1725666351267,0.06546586,54019.0,54018.0,2.476245]
[1725666353027,0.03644518,54019.0,54018.0,2.476245]
[1725666355279,0.03644516,54019.0,54018.0,2.476245]
[1725666358467,0.01903758,54019.0,54018.0,2.476245]
[1725666358747,0.03644509,54019.0,54018.0,2.476245]
[1725666359427,0.06546493,54019.0,54018.0,2.476245]
[1725666359666,0.06546493,54019.0,54018.0,2.846491]
[1725666360577,0.370978,54030.0,54023.0,0.370209]
[1725666360578,0.34191338,54030.0,54023.0,0.370209]
[1725666360797,0.34191338,54030.0,54025.0,0.185098]
[1725666361031,0.1014,54031.0,54030.0,0.01]
[1725666361253,0.1014,54031.0,54030.0,0.033]
[1725666362146,0.1014,54031.0,54030.0,0.032]
[1725666362872,0.1024,54031.0,54030.0,0.033]
[1725666363110,0.287478,54031.0,54030.0,0.044]
[1725666363346,0.76160782,54031.0,54030.0,0.044]
[1725666364082,0.76160782,54031.0,54030.0,0.012]
[1725666364083,1.6492398,54031.0,54030.0,0.012]
[1725666364319,1.63662182,54031.0,54030.0,0.012]
[1725666364566,1.74778087,54031.0,54030.0,0.012]
[1725666364798,1.34984252,54031.0,54030.0,0.012]
[1725666365267,1.26646482,54031.0,54030.0,0.012]
[1725666366469,1.26646482,54031.0,54030.0,1.2873]
[1725666366705,1.63662182,54031.0,54030.0,1.3103]
[1725666366934,1.532649,54031.0,54030.0,1.3103]
[1725666367163,1.63662182,54031.0,54030.0,1.3103]
[1725666369282,1.58531468,54031.0,54030.0,1.3103]
[1725666369517,1.21515768,54031.0,54030.0,1.3103]
[1725666370687,1.13176482,54031.0,54030.0,1.3103]
[1725666370918,1.16078355,54031.0,54030.0,1.3103]
[1725666371389,1.31059328,54031.0,54030.0,1.3103]
[1725666371992,1.28157455,54031.0,54030.0,1.3103]
[1725666372582,1.31639055,54031.0,54030.0,1.3103]
[1725666373255,1.17740244,54031.0,54030.0,1.3103]
[1725666373956,1.17740244,54031.0,54030.0,1.31193]
[1725666374155,1.2125346,54031.0,54030.0,1.31193]
[1725666374397,0.7417926,54031.0,54030.0,1.32093]
[1725666374599,0.04745262,54031.0,54030.0,2.114576]
[1725666374798,0.10310517,54031.0,54030.0,2.114576]
[1725666375097,0.08569717,54031.0,54030.0,2.114576]
[1725666375321,0.07646695,54031.0,54030.0,2.114576]
[1725666375574,0.06564533,54031.0,54030.0,2.114576]
[1725666375793,0.04745329,54031.0,54030.0,2.114576]
[1725666376249,0.03004764,54031.0,54030.0,2.114576]
[1725666376467,0.03662798,54031.0,54030.0,2.114576]
[1725666377841,0.05562557,54038.0,54031.0,0.370156]
[1725666378095,0.05562557,54038.0,54037.0,0.009]
[1725666378323,0.03480816,54038.0,54037.0,1.415]
[1725666378549,0.03480816,54038.0,54037.0,1.623058]
[1725666378780,0.03480816,54038.0,54037.0,1.5457]
[1725666379008,0.03480816,54038.0,54037.0,1.730758]
[1725666379242,0.47405282,54043.0,54037.0,1.730758]
[1725666379243,0.24065296,54042.0,54041.0,0.009]
[1725666379668,0.01740203,54042.0,54041.0,0.2694]
[1725666379670,0.01740203,54042.0,54041.0,0.824528]
[1725666379899,0.04641282,54042.0,54041.0,0.346744]
[1725666380128,0.06381446,54042.0,54041.0,0.345744]
[1725666380588,0.06381446,54042.0,54041.0,0.1607]
[1725666380833,0.06481446,54042.0,54041.0,0.1637]
[1725666381081,0.03480367,54042.0,54041.0,0.345744]
[1725666381328,0.03480367,54042.0,54041.0,0.354744]
[1725666381812,0.03480367,54042.0,54041.0,0.345744]
[1725666382301,0.05642196,54054.0,54052.0,0.377014]
[1725666382547,0.00081,54054.0,54052.0,2.32523133]
[1725666383028,0.00081,54054.0,54052.0,2.69524533]
[1725666383524,0.00081,54054.0,54052.0,3.19195933]
[1725666383752,0.00081,54059.0,54052.0,3.19195933]
[1725666383753,0.00081,54059.0,54055.0,0.011]
[1725666384005,0.00081,54059.0,54055.0,2.12787529]
[1725666384237,0.00081,54059.0,54055.0,2.12587529]
[1725666384490,0.00081,54074.0,54055.0,2.12587529]
[1725666384491,0.00081,54074.0,54073.0,0.005]
[1725666384751,0.00081,54074.0,54073.0,1.37558107]
[1725666384996,0.00081,54074.0,54073.0,0.419135]
[1725666385228,0.00081,54074.0,54073.0,0.1369]
[1725666385706,0.185741,54074.0,54073.0,0.005]
[1725666385967,0.75906275,54074.0,54073.0,0.027]
[1725666386199,1.12892575,54074.0,54073.0,0.023]
[1725666386427,0.554805,54073.0,54072.0,0.023]
[1725666386661,0.554805,54073.0,54072.0,0.027]
[1725666386896,0.924675,54073.0,54072.0,0.027]
[1725666387136,1.03432468,54073.0,54072.0,0.023]
[1725666387370,1.03432468,54073.0,54061.0,0.1319]
[1725666387371,0.185945,54070.0,54069.0,0.027]
[1725666387593,1.11973407,54070.0,54069.0,0.027]
[1725666388037,1.11973407,54070.0,54062.0,0.004]
[1725666388038,0.184969,54063.0,54062.0,0.004]
[1725666388270,0.74991607,54063.0,54062.0,0.004]
[1725666388502,1.11985407,54063.0,54062.0,0.004]
[1725666388718,1.12930375,54063.0,54062.0,0.004]
[1725666389396,0.19541868,54063.0,54062.0,0.004]
[1725666389671,0.56535668,54063.0,54062.0,0.004]
[1725666389905,0.56535668,54063.0,54062.0,0.032]
[1725666389906,0.56635668,54063.0,54062.0,0.032]
[1725666390129,0.56635668,54063.0,54062.0,0.018]
[1725666390369,0.56635668,54063.0,54062.0,0.041]
[1725666390589,0.93629468,54063.0,54062.0,0.041]
[1725666391047,0.93729468,54063.0,54062.0,0.041]
[1725666391491,0.93729468,54063.0,54062.0,0.055]
[1725666391961,0.93729468,54063.0,54062.0,0.041]
[1725666391962,1.50124175,54063.0,54062.0,0.041]
[1725666392184,1.50124175,54063.0,54062.0,0.055]
[1725666393399,1.53023907,54063.0,54062.0,0.055]
[1725666394314,1.51863907,54063.0,54062.0,0.055]
[1725666395297,1.98777707,54063.0,54062.0,0.028]
[1725666396690,1.61783907,54063.0,54062.0,0.028]
[1725666397690,1.61865407,54063.0,54062.0,0.028]
[1725666399580,1.61865577,54063.0,54062.0,0.028]
[1725666401193,1.51945577,54063.0,54062.0,0.028]
[1725666402816,1.51945509,54063.0,54062.0,0.028]
[1725666404146,1.32503641,54063.0,54062.0,0.028]
[1725666404362,1.51000541,54063.0,54062.0,0.028]
[1725666405742,1.49260707,54063.0,54062.0,0.028]
[1725666405998,1.51000515,54063.0,54062.0,0.028]
[1725666406480,1.31599608,54063.0,54062.0,0.028]
[1725666409139,1.31599591,54063.0,54062.0,0.028]
[1725666409372,0.57611991,54063.0,54062.0,0.029628]
[1725666409600,0.57611991,54063.0,54062.0,0.056628]
[1725666409853,0.94605791,54063.0,54062.0,0.056628]
[1725666411249,0.97505695,54063.0,54062.0,0.056628]
[1725666411462,0.97505695,54063.0,54062.0,1.29712433]
[1725666412371,0.60511895,54063.0,54062.0,1.29712433]
[1725666412653,0.21778304,54063.0,54062.0,1.29712433]
[1725666412869,0.57411827,54063.0,54062.0,1.26912433]
[1725666413088,0.57511827,54063.0,54062.0,1.28312433]
[1725666413310,0.57511827,54063.0,54062.0,1.29712433]
[1725666414034,0.5751184,54063.0,54062.0,1.29712433]
[1725666415478,0.57511838,54063.0,54062.0,1.29712433]
[1725666416408,0.94505638,54063.0,54062.0,1.29712433]
[1725666416630,0.94505638,54063.0,54062.0,1.29312433]
[1725666417326,0.97405473,54063.0,54062.0,1.29312433]
[1725666418791,1.44849281,54063.0,54062.0,1.27012433]
[1725666419789,1.4336165,54063.0,54062.0,1.27012433]
[1725666420026,1.46261741,54063.0,54062.0,1.27012433]
[1725666421454,1.46261741,54063.0,54062.0,1.25612433]
[1725666421705,1.46161741,54063.0,54062.0,1.24212433]
[1725666422157,1.46161741,54063.0,54062.0,1.25612433]
[1725666422833,1.4326165,54063.0,54062.0,1.26812433]
[1725666423278,1.4326165,54063.0,54062.0,0.027628]
[1725666423715,1.43239392,54063.0,54062.0,0.027628]
[1725666424509,1.41499746,54063.0,54062.0,0.027628]
[1725666424965,1.43239559,54063.0,54062.0,0.027628]
[1725666425888,1.48786282,54063.0,54062.0,0.027628]
[1725666427020,1.43239559,54063.0,54062.0,0.027628]
[1725666427248,2.35725466,54063.0,54062.0,0.027628]
[1725666427458,2.45102536,54063.0,54062.0,0.027628]
[1725666427644,2.09964058,54063.0,54062.0,0.027628]
[1725666427895,1.93723359,54063.0,54062.0,0.027628]
[1725666428624,1.91983546,54063.0,54062.0,0.027628]
[1725666429353,2.28977346,54063.0,54062.0,0.027628]
[1725666430065,2.29077346,54063.0,54062.0,0.027628]
[1725666430300,2.31977753,54063.0,54062.0,0.027628]
[1725666430543,2.5107606,54063.0,54062.0,0.027628]
[1725666430790,2.67316929,54063.0,54062.0,0.027628]
[1725666431003,2.67316929,54063.0,54049.0,0.4697]
[1725666431004,1.86013007,54050.0,54049.0,0.4697]
[1725666431225,1.86013007,54050.0,54045.0,0.55430836]
[1725666431226,1.296192,54046.0,54045.0,0.55430836]
[1725666431443,0.186034,54044.0,54043.0,1.24049633]
[1725666431665,1.296238,54044.0,54043.0,1.24049633]
[1725666431913,1.82611071,54044.0,54043.0,1.24049633]
[1725666432364,1.82711071,54044.0,54043.0,1.24049633]
[1725666432580,1.666306,54044.0,54043.0,1.24049633]
[1725666432800,1.296504,54033.0,54032.0,0.1342]
[1725666433022,1.49051307,54033.0,54032.0,0.1342]
[1725666433729,1.49051307,54033.0,54030.0,0.00563]
[1725666433730,1.430449,54031.0,54030.0,0.00163]
[1725666433958,1.537249,54031.0,54030.0,0.00163]
[1725666434182,1.99054229,54031.0,54030.0,0.00163]
[1725666434404,1.99154229,54031.0,54030.0,0.00163]
[1725666435065,1.908406,54031.0,54030.0,0.00163]
[1725666435280,2.02736482,54031.0,54030.0,0.00163]
[1725666435996,1.46692598,54031.0,54030.0,0.00163]
[1725666436231,1.46892598,54031.0,54030.0,0.02063]
[1725666436455,1.83908298,54031.0,54030.0,0.02063]
[1725666436673,1.46892598,54031.0,54030.0,0.02063]
[1725666437107,1.49794384,54031.0,54030.0,0.02063]
[1725666438012,1.43436686,54031.0,54030.0,0.02063]
[1725666439377,0.03201786,54031.0,54030.0,1.50182633]
[1725666439632,0.03201786,54031.0,54030.0,1.52482633]
[1725666439873,0.03101786,54031.0,54030.0,1.70990833]
[1725666440340,0.03201786,54031.0,54030.0,1.52482633]
[1725666442431,0.03201786,54031.0,54030.0,1.70990833]
[1725666442666,0.03201786,54031.0,54030.0,1.52482633]
[1725666443322,0.03201786,54031.0,54030.0,1.70990833]
[1725666443560,0.03201786,54031.0,54030.0,2.08007233]
[1725666443561,0.002,54031.0,54030.0,2.08007233]
[1725666443828,0.002,54031.0,54030.0,2.45023633]
[1725666444312,0.003,54031.0,54030.0,2.45023633]
[1725666444984,0.001,54031.0,54030.0,2.44123633]
[1725666445198,0.002,54031.0,54030.0,2.43923633]
[1725666445437,0.002,54031.0,54030.0,2.44523633]
[1725666445869,0.003,54031.0,54030.0,2.43923633]
[1725666446093,0.003,54031.0,54030.0,2.06907233]
[1725666446364,0.003,54031.0,54030.0,1.52782633]
[1725666446601,0.002,54031.0,54030.0,1.71290833]
[1725666446820,0.75024407,54031.0,54030.0,1.38032633]
[1725666447052,0.75024407,54031.0,54030.0,1.25612633]
[1725666447053,1.12040107,54031.0,54030.0,1.25612633]
[1725666447964,1.49055807,54031.0,54030.0,1.25612633]
[1725666448203,1.49055807,54031.0,54030.0,1.27012633]
[1725666448204,1.12140107,54031.0,54030.0,1.27012633]
[1725666448671,1.64113801,54031.0,54030.0,1.25612633]
[1725666448938,1.64213801,54031.0,54030.0,1.25612633]
[1725666449153,1.64213801,54031.0,54030.0,1.27012633]
[1725666449816,1.49155807,54031.0,54030.0,1.27012633]
[1725666450039,1.12140107,54031.0,54030.0,1.27012633]
[1725666450308,0.927392,54031.0,54030.0,0.02963]
[1725666451635,0.95640949,54031.0,54030.0,0.02963]
[1725666454258,1.15041856,54031.0,54030.0,0.02963]
[1725666454468,1.26692615,54031.0,54030.0,0.02963]
[1725666454931,1.63708315,54031.0,54030.0,0.02963]
[1725666458083,1.60806566,54031.0,54030.0,0.02963]
[1725666458968,1.60806566,54031.0,54030.0,0.01563]
[1725666459184,1.49055807,54031.0,54030.0,0.00163]
[1725666459404,1.49055807,54031.0,54030.0,0.01463]
[1725666459664,1.49055807,54031.0,54030.0,0.02863]
[1725666459665,1.49155807,54031.0,54030.0,0.02863]
[1725666459867,1.49155807,54031.0,54030.0,0.16353]
[1725666460320,1.59735785,54031.0,54030.0,0.16353]
[1725666460774,1.59735785,54031.0,54030.0,0.02863]
[1725666461033,1.49155807,54031.0,54030.0,0.02863]
[1725666461477,1.52057534,54031.0,54030.0,0.02863]
[1725666462178,1.49155807,54031.0,54030.0,0.02863]
[1725666462396,1.12040107,54031.0,54030.0,0.02863]
[1725666462935,1.49055807,54031.0,54030.0,0.02863]
[1725666463180,1.48055807,54031.0,54030.0,0.02863]
[1725666463615,1.48055807,54031.0,54030.0,0.29323]
[1725666463616,0.186078,54031.0,54030.0,0.29323]
[1725666464572,0.556235,54031.0,54030.0,0.29323]
[1725666465014,0.186078,54031.0,54030.0,0.29323]
[1725666467068,0.556235,54031.0,54030.0,0.29323]
[1725666467959,0.556235,54031.0,54030.0,0.16353]
[1725666467960,0.926392,54031.0,54030.0,0.16353]
[1725666468411,0.95540831,54031.0,54030.0,0.16353]
[1725666469184,1.10736575,54031.0,54030.0,0.16353]
[1725666470337,0.95540831,54031.0,54030.0,0.16353]
[1725666470559,0.95540831,54031.0,54030.0,0.02863]
[1725666472005,0.926392,54031.0,54030.0,0.02863]
[1725666472693,1.296549,54031.0,54030.0,0.02863]
[1725666473570,1.37979292,54031.0,54030.0,0.02863]
[1725666473890,1.48153207,54031.0,54030.0,0.02863]
[1725666474159,1.59252396,54031.0,54030.0,0.02863]
[1725666474623,1.60691617,54031.0,54030.0,0.02863]
[1725666475259,1.63467344,54031.0,54030.0,0.02863]
[1725666475471,1.66369127,54031.0,54030.0,0.02863]
[1725666476299,1.6637999,54031.0,54030.0,0.02863]
[1725666476600,1.45103874,54031.0,54030.0,0.02863]
[1725666477293,1.33992189,54031.0,54030.0,0.02863]
[1725666477496,1.45104881,54031.0,54030.0,0.02863]
[1725666477913,1.47881683,54031.0,54030.0,0.02863]
[1725666478350,1.33992189,54031.0,54030.0,0.02863]
[1725666478983,1.47883915,54031.0,54030.0,0.02863]
[1725666479652,1.47965509,54031.0,54030.0,0.02863]
[1725666480303,1.34073689,54031.0,54030.0,0.02863]
[1725666481014,0.95622483,54031.0,54030.0,0.02863]
[1725666481212,1.0673629,54031.0,54030.0,0.02863]
[1725666482077,1.03834507,54031.0,54030.0,0.02863]
[1725666483426,1.40850207,54031.0,54030.0,0.02863]
[1725666483633,1.03834507,54031.0,54030.0,0.02863]
[1725666485176,0.927207,54031.0,54030.0,0.02863]
[1725666485383,0.95622484,54031.0,54030.0,0.02863]
[1725666486300,1.32638184,54031.0,54030.0,0.02863]
[1725666486548,0.95622484,54031.0,54030.0,0.02863]
[1725666487738,1.32638184,54031.0,54030.0,0.02863]
[1725666488193,1.46537486,54031.0,54030.0,0.02863]
[1725666489601,1.09521786,54031.0,54030.0,0.12883]
[1725666489862,1.09521786,54031.0,54030.0,0.26323]
[1725666490121,1.09521786,54031.0,54030.0,0.28623]
[1725666490122,1.06743283,54031.0,54030.0,0.28623]
[1725666490373,1.06744656,54031.0,54030.0,0.28623]
[1725666491283,0.95622484,54031.0,54030.0,0.28623]
[1725666492125,1.06620002,54031.0,54030.0,1.52672633]
[1725666493560,0.65854259,54031.0,54030.0,1.52672633]
[1725666493776,0.47346359,54031.0,54030.0,1.52672633]
[1725666495041,0.0842668,54031.0,54030.0,1.71180833]
[1725666495325,0.0842668,54031.0,54030.0,2.45213633]
[1725666495326,0.000815,54031.0,54030.0,2.45213633]
[1725666495599,0.000815,54031.0,54030.0,2.82230033]
[1725666496326,0.000815,54031.0,54030.0,2.80830033]
[1725666496562,0.001815,54031.0,54030.0,2.80930033]
[1725666496776,0.001815,54031.0,54030.0,2.82330033]
[1725666497005,0.000815,54031.0,54030.0,2.80930033]
[1725666497230,0.000815,54031.0,54030.0,2.79530033]
[1725666497712,0.001815,54031.0,54030.0,2.82330033]
[1725666498199,0.185052,54039.0,54036.0,0.2306]
[1725666498436,0.185052,54039.0,54035.0,0.185063]
[1725666498437,0.185052,54039.0,54038.0,0.2306]
[1725666498677,0.21406416,54039.0,54038.0,0.2536]
[1725666499874,0.21406416,54039.0,54038.0,0.2676]
[1725666500593,0.21406416,54039.0,54038.0,0.2666]
[1725666500835,0.21406416,54039.0,54038.0,0.2806]
[1725666501065,0.21406416,54039.0,54038.0,0.2676]
[1725666501319,0.21406416,54039.0,54038.0,0.2806]
[1725666501856,0.185052,54039.0,54038.0,1.51928133]
[1725666503746,0.185867,54039.0,54038.0,1.51928133]
[1725666505144,0.2148788,54039.0,54038.0,1.52328133]
[1725666507916,0.2148788,54039.0,54038.0,1.70833533]
[1725666507917,0.0298268,54039.0,54038.0,1.70833533]
[1725666510544,0.0298268,54039.0,54038.0,1.52328133]
[1725666511405,1.14909287,54039.0,54038.0,1.28868133]
[1725666511629,1.62289587,54039.0,54038.0,1.26568133]
[1725666511853,1.6771253,54039.0,54038.0,1.25268133]
[1725666512090,1.69156629,54039.0,54038.0,1.23868133]
[1725666512318,1.69156629,54039.0,54038.0,1.25268133]
[1725666512543,1.87654936,54039.0,54038.0,1.26668133]
[1725666512785,1.87654936,54039.0,54038.0,1.23868133]
[1725666513027,1.87654936,54039.0,54038.0,1.26668133]
[1725666513028,1.87653939,54039.0,54038.0,1.26668133]
[1725666514375,1.79330813,54039.0,54038.0,1.26668133]
[1725666514594,1.69155805,54039.0,54038.0,1.26668133]
[1725666515015,1.69155805,54039.0,54038.0,1.25268133]
[1725666515451,1.50462506,54039.0,54038.0,1.25268133]
[1725666515692,1.56011102,54039.0,54038.0,1.25268133]
[1725666515912,1.56011102,54039.0,54038.0,1.25668133]
[1725666516134,1.50462506,54039.0,54038.0,1.25668133]
[1725666516350,1.50462506,54039.0,54038.0,1.25268133]
[1725666516574,1.50462506,54039.0,54038.0,0.983018]
[1725666516575,0.02982948,54039.0,54038.0,0.983018]
[1725666516839,0.02982948,54039.0,54038.0,1.552181]
[1725666517085,0.02982948,54039.0,54038.0,1.196072]
[1725666517323,0.02982948,54039.0,54038.0,2.80486233]
[1725666517986,0.02982948,54039.0,54038.0,2.79986233]
[1725666518254,0.02982948,54039.0,54038.0,2.80486233]
[1725666518478,0.02982948,54039.0,54038.0,2.79086233]
[1725666518701,0.02982948,54039.0,54038.0,2.80486233]
[1725666518951,0.02982948,54039.0,54038.0,2.78586233]
[1725666519183,0.02982948,54039.0,54038.0,2.80986233]
[1725666519411,0.02982948,54039.0,54038.0,2.82386233]
[1725666519894,0.02982948,54039.0,54038.0,2.80986233]
[1725666520125,0.02982948,54039.0,54038.0,2.79586233]
[1725666520591,0.02982948,54039.0,54038.0,2.83403233]
[1725666520870,0.02982948,54039.0,54038.0,3.21814133]
[1725666521109,0.02982948,54039.0,54038.0,3.23114133]
[1725666521579,0.02982948,54039.0,54038.0,3.21714133]
[1725666521821,0.000815,54039.0,54038.0,3.23814133]
[1725666522060,0.000815,54039.0,54038.0,3.25114133]
[1725666522274,0.000815,54039.0,54038.0,3.25214133]
[1725666522496,0.000815,54039.0,54038.0,3.23814133]
[1725666522721,0.000815,54039.0,54038.0,3.25214133]
[1725666522937,0.185788,54062.0,54038.0,3.25214133]
[1725666522938,0.000814,54062.0,54061.0,0.188976]
[1725666523169,0.000814,54062.0,54061.0,0.027]
[1725666523588,0.185786,54062.0,54061.0,0.027]
[1725666524738,0.185786,54062.0,54061.0,0.041]
[1725666525410,0.185786,54062.0,54061.0,0.05]
[1725666525859,0.185786,54062.0,54061.0,0.036]
[1725666526101,0.185786,54062.0,54061.0,0.027]
[1725666526323,0.185786,54062.0,54061.0,0.037]
[1725666526570,0.185786,54062.0,54061.0,0.051]
[1725666526812,0.555731,54062.0,54061.0,0.051]
[1725666527050,0.185786,54062.0,54061.0,0.037]
[1725666527287,0.185786,54062.0,54061.0,0.051]
[1725666527515,0.185786,54062.0,54061.0,0.037]
[1725666527760,0.29823844,54063.0,54061.0,0.041]
[1725666527984,0.29823844,54063.0,54062.0,0.023]
[1725666527985,0.48320744,54063.0,54062.0,0.023]
[1725666528207,0.48320744,54063.0,54062.0,1.26168133]
[1725666529359,0.48320744,54063.0,54062.0,1.27568133]
[1725666530308,0.48320744,54063.0,54062.0,1.26168133]
[1725666530547,0.48320744,54063.0,54062.0,1.27568133]
[1725666530986,0.48320744,54063.0,54062.0,1.28468133]
[1725666531225,0.02900533,54065.0,54064.0,0.188965]
[1725666531455,0.00022325,54076.0,54072.0,0.004]
[1725666531684,0.00022325,54076.0,54072.0,1.39218133]
[1725666531965,0.0298117,54073.0,54072.0,1.57711933]
[1725666532211,0.0298117,54073.0,54072.0,1.39218133]
[1725666532441,0.0298117,54073.0,54072.0,1.57711933]
[1725666532681,0.0298117,54073.0,54072.0,1.68371933]
[1725666532921,0.0298117,54073.0,54072.0,1.69771933]
[1725666533156,0.0298117,54073.0,54072.0,1.68371933]
[1725666533403,0.0298117,54073.0,54072.0,1.69771933]
[1725666533654,0.0298117,54073.0,54072.0,1.49878133]
[1725666533946,0.0298117,54073.0,54072.0,1.51278133]
[1725666534199,0.2147467,54073.0,54072.0,1.27168133]
[1725666534451,0.2147467,54073.0,54072.0,1.27568133]
[1725666534691,0.5846167,54073.0,54072.0,1.27568133]
[1725666534920,0.5846167,54073.0,54072.0,1.26568133]
[1725666534921,0.0298117,54073.0,54072.0,1.26568133]
[1725666535164,0.2147467,54073.0,54072.0,1.27968133]
[1725666536126,0.2147467,54073.0,54072.0,1.29368133]
[1725666538288,0.0298117,54073.0,54072.0,1.29368133]
[1725666541069,0.2147467,54073.0,54072.0,1.29368133]
[1725666541294,0.0298117,54073.0,54072.0,1.29368133]
[1725666541749,0.2702117,54073.0,54072.0,1.29368133]
[1725666541983,0.2702117,54073.0,54072.0,1.26668133]
[1725666541984,1.6233196,54073.0,54072.0,1.26668133]
[1725666542336,1.9931896,54073.0,54072.0,1.26668133]
[1725666542546,2.00775883,54073.0,54072.0,1.26668133]
[1725666542759,1.63788883,54073.0,54072.0,1.25268133]
[1725666543201,1.63788883,54073.0,54072.0,1.24668133]
[1725666543425,1.63788883,54073.0,54072.0,1.23868133]
[1725666543640,1.64188883,54073.0,54072.0,1.25368133]
[1725666543881,1.64188883,54073.0,54072.0,1.23968133]
[1725666544075,1.63788883,54073.0,54072.0,1.23868133]
[1725666544287,1.63888883,54073.0,54072.0,1.25268133]
[1725666545892,1.63888883,54073.0,54072.0,0.014]
[1725666545893,2.01575883,54073.0,54072.0,0.014]
[1725666546095,2.01475883,54073.0,54072.0,0.014]
[1725666546558,0.924827,54064.0,54063.0,0.55430836]
[1725666546771,1.11883607,54064.0,54063.0,0.55430836]
[1725666546991,0.554907,54063.0,54062.0,1.23868133]
[1725666547246,0.924845,54063.0,54062.0,1.23868133]
[1725666548668,0.924845,54063.0,54062.0,1.24968133]
[1725666549954,0.924845,54063.0,54062.0,1.26368133]
[1725666550160,1.294783,54063.0,54062.0,1.26368133]
[1725666551456,1.41561096,54063.0,54062.0,1.26368133]
[1725666552600,1.294783,54063.0,54062.0,1.26530933]
[1725666555160,1.30914216,54063.0,54062.0,1.26530933]
[1725666555399,1.33815068,54063.0,54062.0,1.26530933]
[1725666557207,0.96821268,54063.0,54062.0,1.50510933]
[1725666557465,0.96821268,54063.0,54062.0,1.40390933]
[1725666558136,1.33815068,54063.0,54062.0,1.40390933]
[1725666558850,0.96821268,54063.0,54062.0,1.40390933]
[1725666559545,1.33815068,54063.0,54062.0,1.40390933]
[1725666560877,1.33815068,54063.0,54062.0,0.165228]
[1725666561090,0.96821268,54063.0,54062.0,0.165228]
[1725666561509,1.33815068,54063.0,54062.0,0.165228]
[1725666561722,0.96821268,54063.0,54062.0,0.165228]
[1725666561930,1.42105332,54063.0,54062.0,0.026628]
[1725666562144,1.3920448,54063.0,54062.0,0.026628]
[1725666562569,1.41967901,54063.0,54062.0,0.026628]
[1725666563236,1.59486493,54063.0,54062.0,0.026628]
[1725666564117,1.48432808,54063.0,54062.0,0.026628]
[1725666564590,1.30914216,54063.0,54062.0,0.026628]
[1725666564809,1.30995616,54063.0,54062.0,0.026628]
[1725666565238,1.02327021,54063.0,54062.0,0.026628]
[1725666565455,1.05228923,54063.0,54062.0,0.026628]
[1725666565674,0.96902637,54063.0,54062.0,0.026628]
[1725666565955,1.33896437,54063.0,54062.0,0.026628]
[1725666566192,1.48013871,54063.0,54062.0,0.026628]
[1725666567047,1.21723742,54063.0,54062.0,0.026628]
[1725666567259,1.34429876,54063.0,54062.0,0.026628]
[1725666567686,1.26103208,54063.0,54062.0,0.026628]
[1725666568735,1.34430013,54063.0,54062.0,0.026628]
[1725666569179,1.63097008,54063.0,54062.0,0.026628]
[1725666569397,1.87354251,54063.0,54062.0,0.026628]
[1725666569612,1.89074494,54063.0,54062.0,0.026628]
[1725666570043,1.89074494,54063.0,54062.0,0.015628]
[1725666570283,1.89074494,54063.0,54062.0,0.001628]
[1725666570494,1.89274494,54063.0,54062.0,0.015628]
[1725666570925,1.89074494,54063.0,54062.0,0.001628]
[1725666571144,1.70976187,54063.0,54062.0,0.013628]
[1725666572291,1.8484871,54063.0,54062.0,0.001628]
[1725666572724,1.8484871,54063.0,54062.0,0.013628]
[1725666572936,1.8484871,54063.0,54062.0,0.001628]
[1725666573145,1.8444871,54063.0,54062.0,0.001628]
[1725666573595,1.8484871,54063.0,54062.0,0.001628]
[1725666573806,1.8484871,54063.0,54062.0,0.013628]
[1725666574020,1.8444871,54063.0,54062.0,0.013628]
[1725666574230,2.03347017,54063.0,54062.0,0.001628]
[1725666574659,2.02947017,54063.0,54062.0,0.001628]
[1725666575099,2.03347017,54063.0,54062.0,0.001628]
[1725666575312,1.70976187,54063.0,54062.0,0.001628]
[1725666575535,1.70976187,54063.0,54062.0,0.013628]
[1725666575746,1.73877283,54063.0,54062.0,0.001628]
[1725666576215,1.70976187,54063.0,54062.0,0.013628]
[1725666576428,1.81669205,54063.0,54062.0,0.001628]
[1725666576665,1.84715323,54063.0,54062.0,0.013628]
[1725666576874,1.85115323,54063.0,54062.0,0.013628]
[1725666577083,1.74022305,54063.0,54062.0,0.001628]
[1725666577301,1.74022305,54063.0,54062.0,0.013628]
[1725666577507,1.73622305,54063.0,54062.0,0.013628]
[1725666577954,1.74022305,54063.0,54062.0,0.013628]
[1725666578401,1.73622305,54063.0,54062.0,0.013628]
[1725666578625,1.73622305,54063.0,54062.0,0.001628]
[1725666578886,1.73622305,54063.0,54062.0,0.013628]
[1725666579092,1.73622305,54063.0,54062.0,0.001628]
[1725666579786,1.7652274,54063.0,54062.0,0.001628]
[1725666580006,1.7652274,54063.0,54062.0,0.013628]
[1725666580283,1.7692274,54063.0,54062.0,0.001628]
[1725666580505,1.7692274,54063.0,54062.0,0.013628]
[1725666581355,1.7652274,54063.0,54062.0,0.013628]
[1725666581818,1.45903729,54063.0,54062.0,0.243528]
[1725666582032,1.45903729,54063.0,54062.0,0.255528]
[1725666582033,1.450543,54063.0,54062.0,0.255528]
[1725666582482,1.450543,54063.0,54062.0,0.243528]
[1725666582483,1.33958918,54063.0,54062.0,0.243528]
[1725666582721,1.45056617,54063.0,54062.0,0.255528]
[1725666582947,1.60949176,54063.0,54062.0,0.135328]
[1725666583439,1.47299989,54063.0,54062.0,0.149328]
[1725666583907,1.50074354,54063.0,54062.0,0.149328]
[1725666584126,1.59137264,54063.0,54062.0,0.149328]
[1725666584345,1.59137264,54063.0,54062.0,0.150328]
[1725666585010,1.59137264,54063.0,54062.0,0.135328]
[1725666585269,1.59137264,54063.0,54062.0,0.136328]
[1725666585465,1.48039565,54063.0,54062.0,0.150328]
[1725666585703,1.48039565,54063.0,54062.0,0.002628]
[1725666585704,2.13721672,54063.0,54062.0,0.002628]
[1725666585919,2.13721672,54063.0,54062.0,0.016628]
[1725666585920,1.95223365,54063.0,54062.0,0.016628]
[1725666587065,1.95223365,54063.0,54062.0,0.015628]
[1725666587293,1.48039565,54063.0,54062.0,0.151628]
[1725666587542,1.39728142,54063.0,54062.0,0.139628]